[Event "*** Titled Tuesday Blitz"]
[Site "Chess.com"]
[Date "2020.05.26"]
[Round "9"]
[White "MomchilPetkov"]
[Black "attack2mateU"]
[Result "0-1"]
[WhiteElo "2542"]
[BlackElo "2682"]
[TimeControl "180+1"]
[EndTime "11:52:40 PDT"]
[Termination "attack2mateU won by checkmate"]

1. d4 {[%clk 0:03:00.5]} 1... Nf6 {[%clk 0:02:59.6]} 2. c4 {[%clk 0:03:00.4]}
2... g6 {[%clk 0:03:00]} 3. Nc3 {[%clk 0:03:00.6]} 3... d5 {[%clk 0:03:00.4]} 4.
cxd5 {[%clk 0:03:00.9]} 4... Nxd5 {[%clk 0:03:01.2]} 5. e4 {[%clk 0:03:01.1]}
5... Nxc3 {[%clk 0:03:01]} 6. bxc3 {[%clk 0:03:02]} 6... Bg7 {[%clk 0:03:01.1]}
7. Nf3 {[%clk 0:03:02.6]} 7... c5 {[%clk 0:03:01.3]} 8. Be3 {[%clk 0:03:03.2]}
8... Qa5 {[%clk 0:02:57.5]} 9. Qd2 {[%clk 0:03:03.2]} 9... O-O {[%clk
0:02:54.4]} 10. Rc1 {[%clk 0:02:57.3]} 10... Nd7 {[%clk 0:02:52.8]} 11. Bd3
{[%clk 0:02:55.6]} 11... Rd8 {[%clk 0:02:47.5]} 12. O-O {[%clk 0:02:53.3]} 12...
cxd4 {[%clk 0:02:40.5]} 13. cxd4 {[%clk 0:02:54.2]} 13... Qxd2 {[%clk
0:02:40.4]} 14. Nxd2 {[%clk 0:02:36.7]} 14... Ne5 {[%clk 0:02:39]} 15. Be2
{[%clk 0:02:36.5]} 15... Nc6 {[%clk 0:02:12.5]} 16. d5 {[%clk 0:02:33.8]} 16...
Nb4 {[%clk 0:02:06.6]} 17. Bc4 {[%clk 0:02:02.6]} 17... b6 {[%clk 0:01:47.4]}
18. a3 {[%clk 0:01:41.9]} 18... Na6 {[%clk 0:01:47.4]} 19. Bb5 {[%clk
0:01:42.3]} 19... Bb7 {[%clk 0:01:46.1]} 20. Bc6 {[%clk 0:01:28.9]} 20... Bxc6
{[%clk 0:01:44.8]} 21. Rxc6 {[%clk 0:01:29.8]} 21... Nc5 {[%clk 0:00:49.4]} 22.
Bxc5 {[%clk 0:01:23.8]} 22... bxc5 {[%clk 0:00:50.3]} 23. Rxc5 {[%clk
0:01:24.6]} 23... e6 {[%clk 0:00:50.2]} 24. Nf3 {[%clk 0:00:59.9]} 24... exd5
{[%clk 0:00:48.4]} 25. Rxd5 {[%clk 0:00:59.8]} 25... Rxd5 {[%clk 0:00:46.7]} 26.
exd5 {[%clk 0:01:00.7]} 26... Rd8 {[%clk 0:00:35.3]} 27. Rd1 {[%clk 0:01:00.8]}
27... Kf8 {[%clk 0:00:35.4]} 28. g4 {[%clk 0:00:55.2]} 28... Ke7 {[%clk
0:00:35.5]} 29. Ng5 {[%clk 0:00:52.3]} 29... h6 {[%clk 0:00:31.7]} 30. Ne4
{[%clk 0:00:52.3]} 30... Be5 {[%clk 0:00:30.6]} 31. Kg2 {[%clk 0:00:50.4]} 31...
f5 {[%clk 0:00:30.4]} 32. gxf5 {[%clk 0:00:50.3]} 32... gxf5 {[%clk 0:00:31.3]}
33. Ng3 {[%clk 0:00:49.5]} 33... Kf6 {[%clk 0:00:29]} 34. Kf3 {[%clk 0:00:49.7]}
34... Rc8 {[%clk 0:00:25.5]} 35. d6 {[%clk 0:00:37]} 35... Ke6 {[%clk
0:00:24.9]} 36. d7 {[%clk 0:00:36.8]} 36... Rd8 {[%clk 0:00:25.2]} 37. Rd3
{[%clk 0:00:32.1]} 37... a5 {[%clk 0:00:19.2]} 38. h3 {[%clk 0:00:31]} 38... a4
{[%clk 0:00:18.9]} 39. h4 {[%clk 0:00:28.5]} 39... Rxd7 {[%clk 0:00:18.8]} 40.
Rxd7 {[%clk 0:00:28.1]} 40... Kxd7 {[%clk 0:00:19.7]} 41. Nxf5 {[%clk
0:00:28.4]} 41... Bb2 {[%clk 0:00:20.3]} 42. Nxh6 {[%clk 0:00:19.7]} 42... Bxa3
{[%clk 0:00:20.4]} 43. Nf5 {[%clk 0:00:17.5]} 43... Bb2 {[%clk 0:00:13.5]} 44.
Ne3 {[%clk 0:00:17]} 44... a3 {[%clk 0:00:13.6]} 45. Nc2 {[%clk 0:00:16.5]}
45... a2 {[%clk 0:00:13.6]} 46. Kg4 {[%clk 0:00:16.8]} 46... Ke6 {[%clk
0:00:11.7]} 47. Kg5 {[%clk 0:00:16.7]} 47... Kd5 {[%clk 0:00:10.9]} 48. f4
{[%clk 0:00:15.5]} 48... Kc4 {[%clk 0:00:11.1]} 49. f5 {[%clk 0:00:14.9]} 49...
Kb3 {[%clk 0:00:09.9]} 50. f6 {[%clk 0:00:11.3]} 50... Bxf6+ {[%clk 0:00:07.7]}
51. Kxf6 {[%clk 0:00:10.5]} 51... Kxc2 {[%clk 0:00:08.2]} 52. h5 {[%clk
0:00:11.4]} 52... a1=Q+ {[%clk 0:00:08.3]} 53. Kg6 {[%clk 0:00:12.1]} 53... Qh8
{[%clk 0:00:08.1]} 54. h6 {[%clk 0:00:13]} 54... Kd3 {[%clk 0:00:08.2]} 55. h7
{[%clk 0:00:13.9]} 55... Ke4 {[%clk 0:00:08.6]} 56. Kh6 {[%clk 0:00:14.8]} 56...
Kf5 {[%clk 0:00:08.2]} 57. Kh5 {[%clk 0:00:15.3]} 57... Qxh7# {[%clk 0:00:09.1]}
0-1

[Event "*** Titled Tuesday Blitz"]
[Site "Chess.com"]
[Date "2020.05.26"]
[Round "9"]
[White "lupta_robin"]
[Black "Lagravesamuell"]
[Result "0-1"]
[WhiteElo "2602"]
[BlackElo "2487"]
[TimeControl "180+1"]
[EndTime "11:52:40 PDT"]
[Termination "Lagravesamuell won by resignation"]

1. e4 {[%clk 0:03:00.9]} 1... Nf6 {[%clk 0:02:54.7]} 2. e5 {[%clk 0:03:00.8]}
2... Nd5 {[%clk 0:02:53.8]} 3. d4 {[%clk 0:03:01.3]} 3... d6 {[%clk 0:02:54.1]}
4. c4 {[%clk 0:03:01.6]} 4... Nb6 {[%clk 0:02:54.1]} 5. exd6 {[%clk 0:03:01.7]}
5... cxd6 {[%clk 0:02:54.5]} 6. Nc3 {[%clk 0:03:01.7]} 6... g6 {[%clk
0:02:54.9]} 7. Be3 {[%clk 0:03:02.1]} 7... Bg7 {[%clk 0:02:54.8]} 8. Rc1 {[%clk
0:03:02.7]} 8... O-O {[%clk 0:02:54.4]} 9. b3 {[%clk 0:03:03.3]} 9... e5 {[%clk
0:02:54.8]} 10. dxe5 {[%clk 0:03:02.5]} 10... dxe5 {[%clk 0:02:55.4]} 11. Qxd8
{[%clk 0:03:01.7]} 11... Rxd8 {[%clk 0:02:55.9]} 12. c5 {[%clk 0:03:02]} 12...
N6d7 {[%clk 0:02:55.9]} 13. Bc4 {[%clk 0:03:02.5]} 13... Nc6 {[%clk 0:02:56.2]}
14. Nf3 {[%clk 0:03:01.9]} 14... h6 {[%clk 0:02:55.5]} 15. O-O {[%clk
0:02:59.4]} 15... Nd4 {[%clk 0:02:12.1]} 16. b4 {[%clk 0:02:38.1]} 16... a5
{[%clk 0:01:41.2]} 17. a3 {[%clk 0:02:37.4]} 17... axb4 {[%clk 0:01:38.3]} 18.
axb4 {[%clk 0:02:38.3]} 18... b6 {[%clk 0:01:27.2]} 19. Bd5 {[%clk 0:02:17.2]}
19... Ra3 {[%clk 0:01:25.4]} 20. Bxd4 {[%clk 0:02:02.8]} 20... exd4 {[%clk
0:01:23.5]} 21. Nb5 {[%clk 0:02:03.3]} 21... Ra4 {[%clk 0:01:08.2]} 22. Nd6
{[%clk 0:01:52.9]} 22... Rxb4 {[%clk 0:00:29.8]} 23. Nxf7 {[%clk 0:01:38.7]}
23... Rf8 {[%clk 0:00:29.4]} 24. Nd6+ {[%clk 0:01:33.9]} 24... Kh7 {[%clk
0:00:29.5]} 25. Be6 {[%clk 0:01:13.7]} 25... Nxc5 {[%clk 0:00:17.4]} 26. Bxc8
{[%clk 0:01:12.1]} 26... Rd8 {[%clk 0:00:17.7]} 27. Nf5 {[%clk 0:00:21.1]} 27...
Rxc8 {[%clk 0:00:15.6]} 28. Nxg7 {[%clk 0:00:21.7]} 28... Kxg7 {[%clk
0:00:16.2]} 29. Rfd1 {[%clk 0:00:22.4]} 29... Rd8 {[%clk 0:00:16.4]} 30. g3
{[%clk 0:00:22.7]} 30... d3 {[%clk 0:00:15.5]} 31. Rd2 {[%clk 0:00:23.1]} 31...
Ne4 {[%clk 0:00:14.9]} 32. Rdd1 {[%clk 0:00:23.7]} 32... Rd7 {[%clk 0:00:14.8]}
33. Kg2 {[%clk 0:00:23]} 33... d2 {[%clk 0:00:14.4]} 34. Rc2 {[%clk 0:00:23.1]}
34... Rb5 {[%clk 0:00:10.3]} 35. h3 {[%clk 0:00:21.8]} 35... Rbd5 {[%clk
0:00:10.3]} 36. Rb2 {[%clk 0:00:21]} 36... R7d6 {[%clk 0:00:10]} 37. g4 {[%clk
0:00:19.2]} 37... b5 {[%clk 0:00:09.4]} 38. h4 {[%clk 0:00:19.2]} 38... b4
{[%clk 0:00:08.5]} 39. Rxb4 {[%clk 0:00:14.8]} 39... Nc3 {[%clk 0:00:08.7]} 40.
Rb7+ {[%clk 0:00:14.6]} 40... Kf6 {[%clk 0:00:08.4]} 41. g5+ {[%clk 0:00:14.8]}
41... hxg5 {[%clk 0:00:08.1]} 42. hxg5+ {[%clk 0:00:15.7]} 42... Kf5 {[%clk
0:00:08.8]} 43. Rf7+ {[%clk 0:00:14.5]} 43... Kg4 {[%clk 0:00:07]} 44. Rxd2
{[%clk 0:00:12]} 44... Rxd2 {[%clk 0:00:07.2]} 45. Nxd2 {[%clk 0:00:08.7]} 45...
Rxd2 {[%clk 0:00:07.5]} 46. Rc7 {[%clk 0:00:08.6]} 46... Ne4 {[%clk 0:00:07.2]}
47. Rc4 {[%clk 0:00:07.5]} 47... Rxf2+ {[%clk 0:00:07.4]} 48. Kg1 {[%clk
0:00:08.1]} 48... Rf4 {[%clk 0:00:08.3]} 0-1

[Event "*** Titled Tuesday Blitz"]
[Site "Chess.com"]
[Date "2020.05.26"]
[Round "9"]
[White "Pavel_Mir"]
[Black "eightbyeightchess"]
[Result "0-1"]
[WhiteElo "2243"]
[BlackElo "2452"]
[TimeControl "180+1"]
[EndTime "11:52:41 PDT"]
[Termination "eightbyeightchess won by checkmate"]

1. e4 {[%clk 0:03:00.9]} 1... e6 {[%clk 0:02:58.9]} 2. d4 {[%clk 0:03:00.9]}
2... d5 {[%clk 0:02:59.2]} 3. Nd2 {[%clk 0:03:00.4]} 3... Nf6 {[%clk 0:02:58.4]}
4. e5 {[%clk 0:03:00.3]} 4... Nfd7 {[%clk 0:02:58.6]} 5. Bd3 {[%clk 0:03:00.9]}
5... c5 {[%clk 0:02:59.2]} 6. c3 {[%clk 0:03:01.5]} 6... Nc6 {[%clk 0:02:59.1]}
7. Ne2 {[%clk 0:03:02]} 7... cxd4 {[%clk 0:02:59.1]} 8. cxd4 {[%clk 0:03:02.6]}
8... f6 {[%clk 0:02:59.6]} 9. exf6 {[%clk 0:03:03.3]} 9... Nxf6 {[%clk
0:03:00.3]} 10. Nf3 {[%clk 0:03:03]} 10... Qc7 {[%clk 0:03:00.5]} 11. O-O {[%clk
0:03:02.9]} 11... Bd6 {[%clk 0:03:00.1]} 12. Nc3 {[%clk 0:03:03.5]} 12... a6
{[%clk 0:02:59.5]} 13. Be3 {[%clk 0:03:04.2]} 13... O-O {[%clk 0:02:59]} 14. Rc1
{[%clk 0:03:04.8]} 14... h6 {[%clk 0:02:46]} 15. Na4 {[%clk 0:02:51.8]} 15... g5
{[%clk 0:02:44.6]} 16. Ne5 {[%clk 0:02:38.4]} 16... Bxe5 {[%clk 0:02:31.4]} 17.
dxe5 {[%clk 0:02:37.2]} 17... Qxe5 {[%clk 0:02:32.3]} 18. Re1 {[%clk 0:02:32]}
18... d4 {[%clk 0:02:01.3]} 19. Rxc6 {[%clk 0:02:02.6]} 19... bxc6 {[%clk
0:01:49.5]} 20. Bxd4 {[%clk 0:02:02.6]} 20... Qc7 {[%clk 0:01:41.9]} 21. Qf3
{[%clk 0:01:43.9]} 21... Qf7 {[%clk 0:01:16.1]} 22. Nb6 {[%clk 0:01:24.9]} 22...
Rb8 {[%clk 0:01:11.3]} 23. Qh3 {[%clk 0:01:08.1]} 23... e5 {[%clk 0:00:54.7]}
24. Qxh6 {[%clk 0:01:08]} 24... exd4 {[%clk 0:00:49.1]} 25. Bc4 {[%clk
0:01:08.2]} 25... Nd5 {[%clk 0:00:48.7]} 26. Qxg5+ {[%clk 0:00:41.6]} 26... Qg7
{[%clk 0:00:46.3]} 27. Bxd5+ {[%clk 0:00:29.9]} 27... cxd5 {[%clk 0:00:43.7]}
28. Qxd5+ {[%clk 0:00:30.4]} 28... Kh8 {[%clk 0:00:16]} 29. Qh5+ {[%clk
0:00:26.6]} 29... Kg8 {[%clk 0:00:10.9]} 30. Qd5+ {[%clk 0:00:26.5]} 30... Be6
{[%clk 0:00:06.6]} 31. Qxe6+ {[%clk 0:00:19.2]} 31... Rf7 {[%clk 0:00:06.9]} 32.
Nd7 {[%clk 0:00:19]} 32... Kh8 {[%clk 0:00:05.4]} 33. Nxb8 {[%clk 0:00:18.1]}
33... d3 {[%clk 0:00:05.8]} 34. Qh3+ {[%clk 0:00:18]} 34... Qh7 {[%clk
0:00:05.1]} 35. Qxh7+ {[%clk 0:00:17]} 35... Kxh7 {[%clk 0:00:06]} 36. Nc6
{[%clk 0:00:17]} 36... Rc7 {[%clk 0:00:06.3]} 37. Ne5 {[%clk 0:00:16]} 37... d2
{[%clk 0:00:06.6]} 38. Rf1 {[%clk 0:00:14.4]} 38... Rc1 {[%clk 0:00:07.5]} 39.
Nf3 {[%clk 0:00:12.6]} 39... Rxf1+ {[%clk 0:00:07.4]} 40. Kxf1 {[%clk
0:00:13.2]} 40... d1=Q+ {[%clk 0:00:08.3]} 41. Ne1 {[%clk 0:00:13.1]} 41... Qa1
{[%clk 0:00:09.2]} 42. g3 {[%clk 0:00:13.6]} 42... Qxb2 {[%clk 0:00:09.2]} 43.
h4 {[%clk 0:00:14.2]} 43... Qxa2 {[%clk 0:00:09.5]} 44. Nf3 {[%clk 0:00:14.7]}
44... a5 {[%clk 0:00:09.9]} 45. Ng5+ {[%clk 0:00:15.3]} 45... Kg6 {[%clk
0:00:10.2]} 46. Kg2 {[%clk 0:00:15.9]} 46... Qd5+ {[%clk 0:00:09.9]} 47. Nf3
{[%clk 0:00:15.8]} 47... a4 {[%clk 0:00:10]} 48. g4 {[%clk 0:00:16.2]} 48... a3
{[%clk 0:00:10]} 49. h5+ {[%clk 0:00:16.5]} 49... Kg7 {[%clk 0:00:09.8]} 50. Kg3
{[%clk 0:00:17.1]} 50... a2 {[%clk 0:00:09.7]} 51. g5 {[%clk 0:00:17.7]} 51...
a1=Q {[%clk 0:00:09.6]} 52. h6+ {[%clk 0:00:18.1]} 52... Kg6 {[%clk 0:00:09.6]}
53. Kg4 {[%clk 0:00:16.8]} 53... Qa4+ {[%clk 0:00:08.3]} 54. Kg3 {[%clk
0:00:16.2]} 54... Qae4 {[%clk 0:00:07.6]} 55. h7 {[%clk 0:00:15.6]} 55... Qxf3+
{[%clk 0:00:07.3]} 56. Kh2 {[%clk 0:00:16.1]} 56... Qg2# {[%clk 0:00:07.2]} 0-1

[Event "*** Titled Tuesday Blitz"]
[Site "Chess.com"]
[Date "2020.05.26"]
[Round "9"]
[White "Ashedu66"]
[Black "cioxminator"]
[Result "0-1"]
[WhiteElo "2163"]
[BlackElo "2411"]
[TimeControl "180+1"]
[EndTime "11:52:42 PDT"]
[Termination "cioxminator won on time"]

1. d4 {[%clk 0:03:00.9]} 1... Nf6 {[%clk 0:02:58.2]} 2. Nf3 {[%clk 0:02:59.7]}
2... c5 {[%clk 0:02:58]} 3. d5 {[%clk 0:02:59.3]} 3... b5 {[%clk 0:02:57.9]} 4.
Bg5 {[%clk 0:02:58]} 4... Qb6 {[%clk 0:02:58]} 5. Bxf6 {[%clk 0:02:57.8]} 5...
Qxf6 {[%clk 0:02:57]} 6. e4 {[%clk 0:02:57.8]} 6... Qxb2 {[%clk 0:02:37.6]} 7.
Nbd2 {[%clk 0:02:56.3]} 7... a6 {[%clk 0:02:34.6]} 8. a4 {[%clk 0:02:46.9]} 8...
b4 {[%clk 0:02:32.1]} 9. Bc4 {[%clk 0:02:43.4]} 9... d6 {[%clk 0:02:30.2]} 10.
O-O {[%clk 0:02:24.2]} 10... Nd7 {[%clk 0:02:19.9]} 11. Re1 {[%clk 0:02:13.4]}
11... Qf6 {[%clk 0:02:08.3]} 12. e5 {[%clk 0:02:09]} 12... Nxe5 {[%clk
0:02:07.3]} 13. Nxe5 {[%clk 0:02:06.4]} 13... dxe5 {[%clk 0:02:07.5]} 14. Ne4
{[%clk 0:02:02.8]} 14... Qb6 {[%clk 0:02:03.9]} 15. d6 {[%clk 0:01:36.6]} 15...
exd6 {[%clk 0:01:17.9]} 16. Bxf7+ {[%clk 0:01:12.5]} 16... Kd8 {[%clk
0:01:10.7]} 17. Qh5 {[%clk 0:00:36.4]} 17... Be7 {[%clk 0:00:54.6]} 18. Rad1
{[%clk 0:00:33.9]} 18... Kc7 {[%clk 0:00:53.8]} 19. Ng5 {[%clk 0:00:23.1]} 19...
h6 {[%clk 0:00:47.7]} 20. Ne6+ {[%clk 0:00:19.1]} 20... Bxe6 {[%clk 0:00:47.8]}
21. Bxe6 {[%clk 0:00:19.2]} 21... Raf8 {[%clk 0:00:48.1]} 22. Qg6 {[%clk
0:00:16]} 22... Bf6 {[%clk 0:00:34.2]} 23. Qe4 {[%clk 0:00:14.3]} 23... Re8
{[%clk 0:00:29.6]} 24. Bf5 {[%clk 0:00:13.4]} 24... Re7 {[%clk 0:00:28.8]} 25.
Rd5 {[%clk 0:00:13.4]} 25... Rd8 {[%clk 0:00:28.7]} 26. Red1 {[%clk 0:00:13.5]}
26... Qc6 {[%clk 0:00:27.5]} 27. a5 {[%clk 0:00:12.9]} 27... Bg5 {[%clk
0:00:25.8]} 28. Bg4 {[%clk 0:00:12.5]} 28... Rf7 {[%clk 0:00:22.1]} 29. Bf3
{[%clk 0:00:12.3]} 29... Rf4 {[%clk 0:00:17.8]} 30. Qg6 {[%clk 0:00:07.7]} 30...
Rxf3 {[%clk 0:00:16.6]} 31. Qxg7+ {[%clk 0:00:06.4]} 31... Rd7 {[%clk
0:00:16.2]} 32. Qg8 {[%clk 0:00:05]} 32... Rff7 {[%clk 0:00:14.5]} 33. Qg6
{[%clk 0:00:03.4]} 33... Rg7 {[%clk 0:00:14]} 34. Qe4 {[%clk 0:00:03.4]} 34...
Bf4 {[%clk 0:00:10]} 35. f3 {[%clk 0:00:03.3]} 35... Bg5 {[%clk 0:00:09.4]} 36.
Qc4 {[%clk 0:00:03.2]} 36... Qb5 {[%clk 0:00:08.2]} 37. Qe4 {[%clk 0:00:02]}
37... Qc6 {[%clk 0:00:08]} 38. Qc4 {[%clk 0:00:01.9]} 38... Be3+ {[%clk
0:00:08]} 39. Kh1 {[%clk 0:00:01.5]} 39... Bd4 {[%clk 0:00:08.7]} 40. Qd3 {[%clk
0:00:01.7]} 40... Rg5 {[%clk 0:00:06.5]} 41. Qe4 {[%clk 0:00:01.7]} 41... Rf7
{[%clk 0:00:06]} 42. R5xd4 {[%clk 0:00:01.3]} 42... exd4 {[%clk 0:00:04.1]} 43.
Qd3 {[%clk 0:00:01.2]} 43... Qb5 {[%clk 0:00:03]} 44. Qe4 {[%clk 0:00:01.2]}
44... Qc6 {[%clk 0:00:03.4]} 45. Qe6 {[%clk 0:00:01.2]} 45... Rfg7 {[%clk
0:00:03.4]} 0-1

[Event "*** Titled Tuesday Blitz"]
[Site "Chess.com"]
[Date "2020.05.26"]
[Round "9"]
[White "Gloomy_Wanderer"]
[Black "Koksik_13"]
[Result "1-0"]
[WhiteElo "2762"]
[BlackElo "2573"]
[TimeControl "180+1"]
[EndTime "11:52:43 PDT"]
[Termination "Gloomy_Wanderer won on time"]

1. d4 {[%clk 0:03:00.9]} 1... e6 {[%clk 0:03:00]} 2. c4 {[%clk 0:03:01]} 2... d5
{[%clk 0:03:00.5]} 3. Nf3 {[%clk 0:03:00.8]} 3... a6 {[%clk 0:03:00.8]} 4. cxd5
{[%clk 0:02:56.8]} 4... exd5 {[%clk 0:03:01.7]} 5. Bg5 {[%clk 0:02:57.1]} 5...
Nf6 {[%clk 0:03:01.4]} 6. Nc3 {[%clk 0:02:56.7]} 6... c6 {[%clk 0:03:01.9]} 7.
e3 {[%clk 0:02:56.6]} 7... Be7 {[%clk 0:03:02.5]} 8. Bd3 {[%clk 0:02:56.9]} 8...
Nbd7 {[%clk 0:03:03.1]} 9. O-O {[%clk 0:02:56.6]} 9... O-O {[%clk 0:03:03.7]}
10. Qc2 {[%clk 0:02:56.9]} 10... Re8 {[%clk 0:03:04.3]} 11. Rae1 {[%clk
0:02:56.5]} 11... Nf8 {[%clk 0:03:04.6]} 12. h3 {[%clk 0:02:54.8]} 12... Be6
{[%clk 0:03:03.7]} 13. Bf4 {[%clk 0:02:51.7]} 13... Bd6 {[%clk 0:03:01.8]} 14.
Bxd6 {[%clk 0:02:51.9]} 14... Qxd6 {[%clk 0:03:02.7]} 15. a3 {[%clk 0:02:50.8]}
15... Rac8 {[%clk 0:02:59.9]} 16. Qb3 {[%clk 0:02:47.5]} 16... b5 {[%clk
0:02:59.1]} 17. Rc1 {[%clk 0:02:38.8]} 17... N6d7 {[%clk 0:02:51.4]} 18. Qb4
{[%clk 0:02:36.4]} 18... c5 {[%clk 0:02:49.5]} 19. dxc5 {[%clk 0:02:35.6]} 19...
Nxc5 {[%clk 0:02:49.1]} 20. Rfd1 {[%clk 0:02:32.8]} 20... Qe7 {[%clk 0:02:44.2]}
21. Bb1 {[%clk 0:02:30.1]} 21... Red8 {[%clk 0:02:40.7]} 22. Ba2 {[%clk
0:02:13.4]} 22... Qf6 {[%clk 0:02:11.7]} 23. Bxd5 {[%clk 0:02:00.8]} 23... Nd3
{[%clk 0:01:29.2]} 24. Rxd3 {[%clk 0:01:40.3]} 24... Bxd5 {[%clk 0:01:29.6]} 25.
Rcd1 {[%clk 0:01:16.3]} 25... Bxf3 {[%clk 0:01:25.7]} 26. Rxd8 {[%clk
0:01:16.2]} 26... Rxd8 {[%clk 0:01:26.6]} 27. Rxd8 {[%clk 0:01:16.1]} 27... Qxd8
{[%clk 0:01:27.2]} 28. gxf3 {[%clk 0:01:16]} 28... h6 {[%clk 0:01:21.4]} 29. Kg2
{[%clk 0:00:55.7]} 29... Ng6 {[%clk 0:01:21.2]} 30. Qe4 {[%clk 0:00:41.6]} 30...
Nh4+ {[%clk 0:01:05.5]} 31. Kf1 {[%clk 0:00:41.4]} 31... Qg5 {[%clk 0:00:33.7]}
32. Qg4 {[%clk 0:00:38.4]} 32... Qd8 {[%clk 0:00:34.2]} 33. Ke2 {[%clk
0:00:36.1]} 33... Ng6 {[%clk 0:00:32.3]} 34. Qe4 {[%clk 0:00:34.4]} 34... Qc8
{[%clk 0:00:29.1]} 35. Nd5 {[%clk 0:00:30.4]} 35... Kh8 {[%clk 0:00:20.1]} 36.
h4 {[%clk 0:00:23]} 36... Nf8 {[%clk 0:00:19.9]} 37. h5 {[%clk 0:00:17.8]} 37...
Ne6 {[%clk 0:00:19.6]} 38. Nc3 {[%clk 0:00:18.3]} 38... Qc5 {[%clk 0:00:14.5]}
39. Qd5 {[%clk 0:00:16.4]} 39... Qc7 {[%clk 0:00:14.4]} 40. f4 {[%clk 0:00:16]}
40... Qe7 {[%clk 0:00:10.4]} 41. Qa8+ {[%clk 0:00:16.1]} 41... Kh7 {[%clk
0:00:10]} 42. Qe4+ {[%clk 0:00:15.4]} 42... Kh8 {[%clk 0:00:09.9]} 43. Kf1
{[%clk 0:00:14.6]} 43... Qh4 {[%clk 0:00:09.2]} 44. Qf3 {[%clk 0:00:13.6]} 44...
Qf6 {[%clk 0:00:07.4]} 45. Qa8+ {[%clk 0:00:12.4]} 45... Kh7 {[%clk 0:00:07.1]}
46. Qxa6 {[%clk 0:00:13.1]} 46... Nc5 {[%clk 0:00:02]} 47. Qxb5 {[%clk 0:00:12]}
47... Qd6 {[%clk 0:00:01.7]} 48. Qe2 {[%clk 0:00:10.6]} 1-0

[Event "*** Titled Tuesday Blitz"]
[Site "Chess.com"]
[Date "2020.05.26"]
[Round "9"]
[White "GeorgMeier"]
[Black "A-Adly"]
[Result "0-1"]
[WhiteElo "2970"]
[BlackElo "2846"]
[TimeControl "180+1"]
[EndTime "11:52:44 PDT"]
[Termination "A-Adly won by resignation"]

1. Nf3 {[%clk 0:03:00.9]} 1... d5 {[%clk 0:02:59.4]} 2. g3 {[%clk 0:03:00.3]}
2... Nf6 {[%clk 0:02:58.9]} 3. Bg2 {[%clk 0:03:00.2]} 3... b5 {[%clk 0:02:57.2]}
4. O-O {[%clk 0:02:59.1]} 4... Bb7 {[%clk 0:02:57.7]} 5. d3 {[%clk 0:02:59]}
5... Nbd7 {[%clk 0:02:57.3]} 6. c4 {[%clk 0:02:58.9]} 6... bxc4 {[%clk
0:02:52.2]} 7. dxc4 {[%clk 0:02:59.8]} 7... dxc4 {[%clk 0:02:51.8]} 8. Na3
{[%clk 0:02:43]} 8... c3 {[%clk 0:02:50.6]} 9. bxc3 {[%clk 0:02:41.2]} 9... e6
{[%clk 0:02:50.5]} 10. Nc4 {[%clk 0:02:39.3]} 10... Nb6 {[%clk 0:02:42.3]} 11.
Na5 {[%clk 0:02:37.3]} 11... Qxd1 {[%clk 0:02:41.8]} 12. Rxd1 {[%clk 0:02:38.2]}
12... Bd5 {[%clk 0:02:32.5]} 13. Ne5 {[%clk 0:02:29.2]} 13... Bd6 {[%clk
0:02:28]} 14. Nec6 {[%clk 0:02:25.2]} 14... O-O {[%clk 0:02:09.1]} 15. Be3
{[%clk 0:02:14.8]} 15... Rfe8 {[%clk 0:01:56.9]} 16. Bd4 {[%clk 0:02:06.7]}
16... Ne4 {[%clk 0:01:32.4]} 17. Rac1 {[%clk 0:01:30.4]} 17... Ba3 {[%clk
0:01:13.1]} 18. Rc2 {[%clk 0:01:23.2]} 18... Nd6 {[%clk 0:01:12.6]} 19. Rb1
{[%clk 0:00:32.5]} 19... f6 {[%clk 0:01:02.6]} 20. g4 {[%clk 0:00:19]} 20...
Bxg2 {[%clk 0:00:55.7]} 21. Kxg2 {[%clk 0:00:19]} 21... e5 {[%clk 0:00:56.3]}
22. Be3 {[%clk 0:00:17.2]} 22... Ndc4 {[%clk 0:00:53.9]} 23. Nxc4 {[%clk
0:00:14.1]} 23... Nxc4 {[%clk 0:00:54.8]} 24. Bc1 {[%clk 0:00:12.8]} 24... Bd6
{[%clk 0:00:52.4]} 25. Rb5 {[%clk 0:00:11]} 25... a6 {[%clk 0:00:51.9]} 26. Rd5
{[%clk 0:00:11.1]} 26... Re6 {[%clk 0:00:49]} 27. Na5 {[%clk 0:00:11]} 27... Nb6
{[%clk 0:00:48]} 28. Rd1 {[%clk 0:00:10.4]} 28... h5 {[%clk 0:00:46]} 29. h3
{[%clk 0:00:10.4]} 29... hxg4 {[%clk 0:00:45.5]} 30. hxg4 {[%clk 0:00:11.3]}
30... Bc5 {[%clk 0:00:42.8]} 31. Nb3 {[%clk 0:00:10.8]} 31... Be7 {[%clk
0:00:40.9]} 32. c4 {[%clk 0:00:11.3]} 32... Rc6 {[%clk 0:00:36.6]} 33. c5 {[%clk
0:00:11.7]} 33... Na4 {[%clk 0:00:27.8]} 34. Be3 {[%clk 0:00:11.6]} 34... Rb8
{[%clk 0:00:26.8]} 35. Rd7 {[%clk 0:00:10.3]} 35... Kf8 {[%clk 0:00:26.2]} 36.
Rc4 {[%clk 0:00:10.3]} 36... Nb2 {[%clk 0:00:25.4]} 37. Rc2 {[%clk 0:00:10.4]}
37... Na4 {[%clk 0:00:25.4]} 38. Rc4 {[%clk 0:00:10.6]} 38... Nb6 {[%clk
0:00:24.7]} 39. cxb6 {[%clk 0:00:08.4]} 39... Rxc4 {[%clk 0:00:25.1]} 40. bxc7
{[%clk 0:00:08.1]} 40... Rc8 {[%clk 0:00:24.1]} 41. Bb6 {[%clk 0:00:07.9]} 41...
Ke8 {[%clk 0:00:20.8]} 42. Rd1 {[%clk 0:00:05.5]} 42... Rc6 {[%clk 0:00:21]} 43.
Ba5 {[%clk 0:00:05.1]} 43... Bd6 {[%clk 0:00:21.3]} 44. Rh1 {[%clk 0:00:04]}
44... Bxc7 {[%clk 0:00:21.5]} 45. Rh8+ {[%clk 0:00:04]} 45... Kd7 {[%clk
0:00:21.6]} 46. Rh7 {[%clk 0:00:04.2]} 46... Rg8 {[%clk 0:00:21.6]} 47. Bxc7
{[%clk 0:00:02.2]} 47... Rxc7 {[%clk 0:00:21.1]} 48. Kf3 {[%clk 0:00:02.7]}
48... Ke6 {[%clk 0:00:21.2]} 49. e3 {[%clk 0:00:02.7]} 49... Rc2 {[%clk
0:00:21.2]} 50. g5 {[%clk 0:00:01.1]} 50... Rxa2 {[%clk 0:00:19.9]} 51. g6
{[%clk 0:00:01.1]} 51... Kf5 {[%clk 0:00:18.9]} 52. Nc5 {[%clk 0:00:01.5]} 52...
Kxg6 {[%clk 0:00:18.7]} 53. Rh1 {[%clk 0:00:02.4]} 53... a5 {[%clk 0:00:18.6]}
54. Ne6 {[%clk 0:00:02.3]} 54... Kf7 {[%clk 0:00:18.5]} 55. Nc5 {[%clk
0:00:02.3]} 55... Rc8 {[%clk 0:00:18.9]} 0-1